bitfinex/quotes_SOLUSD_20250815
["timestamp","ask_amount","ask_price","bid_price","bid_amount"]
[1755238649208,0.2,197.07,197.06,97.42708678]
[1755238649408,0.2,197.07,197.06,96.91962713]
[1755238649826,1e-08,197.07,197.06,96.91962713]
[1755238650217,0.06,197.11,197.06,96.91962713]
[1755238650218,0.06,197.11,197.09,26.0]
[1755238650533,0.06,197.11,197.1,50.028815]
[1755238650696,0.06,197.11,197.1,50.718815]
[1755238651094,0.06,197.11,197.1,55.79238171]
[1755238652533,0.06,197.14,197.11,15.10621557]
[1755238652722,0.06,197.14,197.11,28.96503057]
[1755238653235,1e-08,197.14,197.13,26.0]
[1755238653422,1e-08,197.14,197.13,91.13503057]
[1755238653620,1e-08,197.14,197.13,91.84503057]
[1755238654002,1e-08,197.15,197.14,15.10621557]
[1755238654198,1e-08,197.15,197.14,16.32346929]
[1755238654531,1e-08,197.16,197.14,29.47228429]
[1755238654701,1e-08,197.16,197.15,50.738815]
[1755238654897,1e-08,197.16,197.15,65.84503057]
[1755238655324,1e-08,197.16,197.15,70.91731055]
[1755238655529,1e-08,197.16,197.15,71.42453854]
[1755238655837,0.06,197.19,197.18,26.0]
[1755238656043,0.06,197.19,197.18,91.13503057]
[1755238656205,0.71,197.26,197.22,26.0]
[1755238656404,0.71,197.26,197.25,13.148815]
[1755238656615,0.71,197.29,197.25,13.148815]
[1755238656931,0.71,197.29,197.26,13.148815]
[1755238657230,0.71,197.31,197.26,18.21826648]
[1755238658332,0.71,197.32,197.26,44.21826648]
[1755238658814,0.71,197.35,197.26,34.54142719]
[1755238659412,36.86,197.4,197.26,34.54142719]
[1755238659413,18.21523267,197.38,197.26,33.83142719]
[1755238659605,0.71,197.3,197.26,13.148815]
[1755238659813,0.91,197.27,197.26,26.0]
[1755238660023,0.2,197.27,197.25,13.148815]
[1755238660433,0.2,197.27,197.26,65.80503057]
[1755238661012,1e-08,197.27,197.26,65.80503057]
[1755238661231,1e-08,197.27,197.26,18.21826648]
[1755238661431,1e-08,197.27,197.26,55.05826648]
[1755238661619,1e-08,197.27,197.26,55.76826648]
[1755238661928,1e-08,197.27,197.26,55.05826648]
[1755238663020,1e-08,197.27,197.26,70.87448205]
[1755238663342,12.66277412,197.43,197.26,70.87448205]
[1755238663343,0.71,197.37,197.33,26.0]
[1755238663632,0.71,197.37,197.35,13.148815]
[1755238663840,0.71,197.37,197.36,13.148815]
[1755238664129,86.528815,197.42,197.33,26.0]
[1755238664130,91.59432989,197.42,197.33,26.0]
[1755238664341,0.71,197.36,197.35,26.0]
[1755238664706,0.71,197.39,197.35,26.0]
[1755238664907,0.71,197.38,197.35,26.0]
[1755238665108,78.44551489,197.42,197.35,39.148815]
[1755238665305,0.71,197.38,197.35,26.0]
[1755238665516,0.71,197.37,197.34,26.0]
[1755238665722,0.71,197.36,197.32,26.0]
[1755238665920,15.10621557,197.4,197.29,13.148815]
[1755238666142,0.71,197.35,197.3,13.148815]
[1755238666457,0.71,197.35,197.32,13.148815]
[1755238666621,0.71,197.37,197.32,13.148815]
[1755238666947,13.148815,197.35,197.29,39.148815]
[1755238667118,0.71,197.34,197.29,39.148815]
[1755238667312,0.71,197.33,197.29,39.148815]
[1755238667529,0.71,197.33,197.29,44.21740746]
[1755238667941,0.71,197.32,197.24,15.224949]
[1755238668122,0.71,197.32,197.25,18.2183066]
[1755238668321,0.71,197.32,197.26,13.148815]
[1755238668532,0.71,197.32,197.26,39.148815]
[1755238668732,0.71,197.32,197.26,26.0]
[1755238668923,13.858815,197.34,197.26,26.0]
[1755238669122,13.858815,197.33,197.27,13.148815]
[1755238669335,0.71,197.32,197.26,39.148815]
[1755238669541,13.858815,197.32,197.26,39.148815]
[1755238669843,13.148815,197.27,197.2,13.148815]
[1755238670521,13.148815,197.27,197.21,39.148815]
[1755238670737,5.06797504,197.32,197.19,18.22006607]
[1755238670738,13.858815,197.26,197.19,18.22006607]
[1755238671040,13.858815,197.26,197.21,13.148815]
[1755238671041,0.71,197.26,197.21,13.148815]
[1755238671249,18.21647472,197.33,197.28,26.0]
[1755238671544,0.71,197.36,197.31,13.148815]
[1755238671834,0.71,197.35,197.29,31.06853753]
[1755238672037,0.71,197.35,197.3,13.148815]
[1755238672634,0.71,197.34,197.29,44.21735253]
[1755238672925,13.148815,197.35,197.29,26.0]
[1755238673118,13.858815,197.33,197.29,26.0]
[1755238673317,13.858815,197.32,197.25,13.148815]
[1755238673550,13.148815,197.34,197.27,39.148815]
[1755238674236,13.858815,197.35,197.29,13.148815]
[1755238674845,13.858815,197.35,197.28,13.858815]
[1755238675018,13.858815,197.35,197.28,13.148815]
[1755238675218,13.148815,197.33,197.27,26.0]
[1755238675417,13.688815,197.32,197.27,26.0]
[1755238675630,0.54,197.31,197.27,26.0]
[1755238676218,18.75648941,197.33,197.27,31.06912881]
[1755238676425,13.688815,197.33,197.27,31.06912881]
[1755238676748,0.54,197.33,197.27,44.21794381]
[1755238676931,0.06,197.39,197.28,0.71]
[1755238677247,0.06,197.39,197.37,13.148815]
[1755238677419,0.06,197.39,197.36,18.21563823]
[1755238678142,0.06,197.39,197.36,18.92563823]
[1755238678320,0.06,197.39,197.36,18.21563823]
[1755238679018,0.06,197.39,197.38,13.148815]
[1755238679218,0.06,197.39,197.37,13.148815]
[1755238679619,0.06,197.39,197.37,18.21523078]
[1755238680621,0.77,197.39,197.34,13.148815]
[1755238681050,0.06,197.39,197.37,13.148815]
[1755238681228,0.06,197.39,197.35,13.848815]
[1755238681429,0.06,197.39,197.34,13.148815]
[1755238681633,0.06,197.39,197.34,18.21605769]
[1755238681832,0.06,197.39,197.34,18.91605769]
[1755238682139,13.918815,197.41,197.34,18.91605769]
[1755238682140,5.74926671,197.41,197.35,13.848815]
[1755238682640,13.858815,197.41,197.35,13.848815]
[1755238682841,13.148815,197.44,197.38,13.148815]
[1755238683021,3.36522805,197.43,197.38,13.148815]
[1755238683225,13.148815,197.44,197.36,0.7]
[1755238683423,16.51377106,197.43,197.37,26.0]
[1755238683751,13.858815,197.43,197.37,39.148815]
[1755238683945,3.36514528,197.42,197.37,26.0]
[1755238684130,0.71,197.42,197.37,26.0]
[1755238684323,0.71,197.42,197.37,31.06659015]
[1755238684947,0.71,197.41,197.36,5.06686702]
[1755238685144,13.148815,197.41,197.36,5.06686702]
[1755238685449,0.71,197.41,197.36,13.148815]
[1755238685646,13.148815,197.42,197.37,5.06662613]
[1755238685850,13.858815,197.42,197.37,5.06662613]
[1755238686360,13.148815,197.38,197.34,26.0]
[1755238686527,13.858815,197.37,197.34,26.0]
[1755238687037,13.148815,197.37,197.31,5.06791142]
[1755238687237,13.148815,197.37,197.32,0.7]
[1755238687454,13.858815,197.36,197.3,5.76840545]
[1755238687631,13.148815,197.33,197.29,5.0686462]
[1755238687826,26.0,197.43,197.32,13.148815]
[1755238687827,0.71,197.4,197.32,13.148815]
[1755238688040,3.3699751,197.39,197.33,13.848815]
[1755238688226,3.3699751,197.39,197.29,43.74034775]
[1755238688227,13.148815,197.41,197.35,13.148815]
[1755238688552,3.37174013,197.4,197.34,0.7]
[1755238688729,13.148815,197.4,197.34,0.7]
[1755238689762,16.52270408,197.39,197.34,0.7]
[1755238689928,13.148815,197.37,197.32,26.0]
[1755238690334,13.858815,197.39,197.33,0.7]
[1755238690538,13.148815,197.38,197.33,0.7]
[1755238690848,13.148815,197.37,197.33,0.7]
[1755238691031,13.148815,197.37,197.32,31.06781772]
[1755238691224,13.148815,197.37,197.29,49.48170155]
[1755238691225,13.148815,197.33,197.29,0.03]
[1755238691422,13.148815,197.3,197.29,0.03]
[1755238692349,13.148815,197.31,197.29,0.03]
[1755238693257,0.71,197.35,197.29,0.03]
[1755238693258,54.02496957,197.3,197.29,0.03]
[1755238693455,54.02496957,197.3,197.27,0.03]
[1755238693456,15.10621557,197.29,197.27,0.03]
[1755238693654,31.64118514,197.28,197.27,0.03]
[1755238693830,32.35118514,197.28,197.27,0.03]
[1755238695055,37.42012269,197.28,197.27,0.03]
[1755238695961,32.35118514,197.28,197.27,0.03]
[1755238696125,37.42494758,197.28,197.27,0.03]
[1755238696939,61.05613258,197.28,197.27,0.03]
[1755238697130,13.148815,197.31,197.27,0.03]
[1755238697329,36.78,197.29,197.27,0.03]
[1755238697552,36.78,197.29,197.27,0.73]
[1755238698858,36.78,197.29,197.27,0.03]
[1755238699353,13.858815,197.28,197.27,0.03]
[1755238699566,32.36328179,197.28,197.27,0.03]
[1755238700438,62.36328179,197.28,197.27,0.03]
[1755238701166,67.43221934,197.28,197.27,0.03]
[1755238702040,37.43221934,197.28,197.27,0.03]
[1755238702229,31.65328179,197.28,197.27,0.03]
[1755238702539,41.10621557,197.25,197.24,0.03]
[1755238702733,94.45328179,197.25,197.24,0.03]
[1755238702947,98.45328179,197.25,197.24,0.03]
[1755238703358,68.45163896,197.25,197.24,0.03]
[1755238703559,49.948815,197.25,197.24,0.03]
[1755238703762,65.76503057,197.25,197.24,0.03]
[1755238703944,68.45163896,197.25,197.24,0.03]
[1755238704147,70.12473906,197.25,197.24,0.03]
[1755238705064,131.9,197.26,197.24,0.03]
[1755238705241,131.9,197.26,197.24,0.73]
[1755238705444,13.148815,197.29,197.25,0.7]
[1755238705633,36.8,197.28,197.26,0.7]
[1755238705978,36.8,197.28,197.27,0.7]
[1755238706474,36.8,197.3,197.27,5.7691945]
[1755238706654,13.148815,197.33,197.28,0.7]
[1755238706655,36.8,197.31,197.28,0.7]
[1755238706847,36.8,197.31,197.28,13.848815]
[1755238707044,36.8,197.31,197.27,18.2180095]
[1755238707357,36.8,197.31,197.29,0.7]
[1755238707559,36.8,197.33,197.27,18.2180095]
[1755238707765,36.8,197.33,197.3,0.7]
[1755238707945,36.8,197.33,197.31,0.7]
[1755238708140,36.8,197.33,197.31,5.76814935]
[1755238708353,36.8,197.33,197.28,13.148815]
[1755238708354,36.8,197.33,197.32,0.7]
[1755238708550,36.86,197.35,197.32,0.7]
[1755238709048,36.86,197.35,197.33,0.7]
[1755238710375,13.148815,197.34,197.29,0.7]
[1755238710592,13.148815,197.33,197.29,26.7]
[1755238710756,13.148815,197.34,197.29,26.7]
[1755238710943,13.148815,197.34,197.3,0.7]
[1755238712340,0.06,197.35,197.31,0.7]
[1755238712565,13.148815,197.33,197.3,26.0]
[1755238713152,49.928815,197.34,197.3,26.0]
[1755238713358,49.928815,197.34,197.3,26.7]
[1755238713552,13.148815,197.31,197.26,0.7]
[1755238713871,13.148815,197.33,197.28,31.06893755]
[1755238714058,13.148815,197.33,197.29,0.7]
[1755238714390,13.148815,197.32,197.28,31.06893755]
[1755238714581,13.148815,197.32,197.29,0.7]
[1755238714966,36.78,197.31,197.29,0.7]
[1755238715702,36.78,197.31,197.29,5.06843967]
[1755238715860,36.78,197.33,197.3,0.7]
[1755238716265,36.78,197.33,197.31,0.7]
[1755238716465,0.06,197.35,197.32,0.7]
[1755238716466,36.84,197.35,197.32,0.7]
[1755238716692,36.84,197.35,197.33,0.7]
[1755238717077,0.06,197.35,197.34,0.7]
[1755238717671,0.06,197.35,197.34,5.76739637]
[1755238718489,0.06,197.35,197.34,18.91621137]
[1755238719976,0.06,197.35,197.34,5.76739637]
[1755238720794,0.06,197.35,197.34,18.91621137]
[1755238722282,0.06,197.37,197.36,26.0]
[1755238722482,0.06,197.37,197.36,39.148815]
[1755238722670,0.06,197.37,197.36,39.848815]
[1755238723290,0.06,197.39,197.37,26.0]
[1755238723497,0.06,197.39,197.38,39.148815]
[1755238723680,0.06,197.41,197.39,15.10621557]
[1755238723878,0.06,197.43,197.42,26.0]
[1755238724089,0.06,197.43,197.42,39.148815]
[1755238724278,0.06,197.43,197.42,31.76534292]
[1755238724480,0.06,197.43,197.41,5.06559621]
[1755238724677,0.71,197.42,197.4,26.0]
[1755238724871,0.71,197.42,197.37,5.06662613]
[1755238724872,0.71,197.41,197.37,5.06662613]
[1755238725078,13.858815,197.42,197.4,26.0]
[1755238725283,13.148815,197.42,197.4,26.0]
[1755238725624,13.208815,197.43,197.4,26.0]
[1755238725796,13.148815,197.42,197.39,26.0]
[1755238726101,0.77,197.43,197.39,31.06607995]
[1755238726279,0.06,197.43,197.39,31.76607995]
[1755238726989,0.06,197.43,197.39,31.06607995]
[1755238727173,0.06,197.43,197.39,31.76607995]
[1755238727378,0.06,197.43,197.4,13.848815]
[1755238727590,0.06,197.43,197.41,13.148815]
[1755238727787,0.06,197.43,197.42,5.06534292]
[1755238728001,0.06,197.43,197.42,5.76534292]
[1755238728293,0.06,197.43,197.42,18.91415792]
[1755238729102,0.06,197.43,197.4,5.06573278]
[1755238729400,0.06,197.43,197.4,31.06573278]
[1755238729582,0.06,197.43,197.4,26.0]
[1755238729898,0.06,197.43,197.42,26.0]
[1755238730101,0.06,197.43,197.42,39.148815]
[1755238730306,0.06,197.43,197.42,39.848815]
[1755238730602,0.06,197.43,197.4,31.06574536]
[1755238730794,0.06,197.43,197.42,13.148815]
[1755238731292,0.06,197.43,197.42,13.848815]
[1755238731695,0.06,197.43,197.42,5.06534292]
[1755238732193,0.06,197.43,197.4,5.06559993]
[1755238732395,0.06,197.43,197.42,26.0]
[1755238734000,13.918815,197.43,197.39,26.0]
[1755238734182,13.918815,197.43,197.36,49.888815]
[1755238734384,0.77,197.43,197.36,49.888815]
[1755238734584,0.77,197.43,197.4,26.0]
[1755238735277,13.918815,197.43,197.4,26.0]
[1755238735702,13.148815,197.41,197.36,0.03]
[1755238735901,13.148815,197.38,197.36,0.03]
[1755238736291,13.148815,197.39,197.36,0.03]
[1755238737002,13.148815,197.39,197.36,5.09681542]
[1755238737209,13.148815,197.39,197.36,0.03]
[1755238737393,0.71,197.4,197.36,0.03]
[1755238737703,13.858815,197.4,197.36,0.03]
[1755238738200,13.148815,197.42,197.37,0.7]
[1755238738407,13.148815,197.39,197.36,0.03]
[1755238738705,13.148815,197.38,197.36,0.03]
[1755238739108,13.208815,197.43,197.38,5.06636943]
[1755238739289,13.918815,197.43,197.38,5.76636943]
[1755238739485,0.06,197.43,197.38,18.91518443]
[1755238739690,0.06,197.43,197.41,13.148815]
[1755238740101,0.06,197.43,197.42,13.848815]
[1755238741209,0.06,197.43,197.42,18.91415792]
[1755238743005,37.32,197.49,197.42,18.91415792]
[1755238743204,37.32,197.49,197.44,5.06482982]
[1755238743586,36.66,197.49,197.44,5.06482982]
[1755238743792,0.66,197.48,197.44,5.06482982]
[1755238745007,36.66,197.49,197.44,18.21364482]
[1755238745206,36.66,197.49,197.44,18.89364482]
[1755238745908,0.66,197.48,197.44,5.06482982]
[1755238746608,49.808815,197.49,197.42,39.148815]
[1755238746801,49.808815,197.49,197.4,5.06585612]
[1755238746802,13.148815,197.46,197.4,5.06585612]
[1755238747012,0.66,197.45,197.42,26.0]
[1755238747395,13.808815,197.48,197.42,31.06527999]
[1755238747718,0.66,197.48,197.42,44.21409499]
[1755238748136,36.66,197.49,197.43,13.828815]
[1755238749207,49.808815,197.49,197.44,5.06482982]
[1755238749435,0.66,197.48,197.44,5.06482982]
[1755238749719,49.808815,197.49,197.42,39.148815]
[1755238749720,13.148815,197.47,197.42,31.06529963]
[1755238750129,13.808815,197.46,197.39,13.148815]
[1755238750423,13.708815,197.45,197.38,13.828815]
[1755238750723,13.708815,197.44,197.41,26.0]
[1755238750909,13.148815,197.42,197.38,0.03]
[1755238751106,13.148815,197.4,197.38,0.03]
[1755238751318,13.708815,197.39,197.38,0.03]
[1755238751624,65.55503057,197.39,197.38,0.03]
[1755238752202,68.94455381,197.39,197.38,0.03]
[1755238753317,104.01066658,197.39,197.38,0.03]
[1755238755002,41.10621557,197.37,197.36,0.03]
[1755238755197,70.79336881,197.37,197.34,0.03]
[1755238755401,28.25503057,197.35,197.34,0.03]
[1755238755602,68.38455381,197.35,197.34,0.03]
[1755238755799,69.04455381,197.35,197.34,0.03]
[1755238756706,74.1116934,197.35,197.34,0.03]
[1755238758027,74.1116934,197.35,197.27,0.03]
[1755238758028,86.77954239,197.35,197.27,0.03]
[1755238758208,13.148815,197.28,197.27,0.03]
[1755238758403,49.888815,197.28,197.27,0.03]
[1755238760546,13.148815,197.28,197.27,0.03]
[1755238760742,36.74,197.29,197.27,0.71]
[1755238760913,36.74,197.3,197.27,0.71]
[1755238761119,36.74,197.31,197.27,0.71]
[1755238761310,36.74,197.31,197.29,13.148815]
[1755238761510,36.74,197.34,197.3,13.828815]
[1755238761729,36.74,197.34,197.3,13.148815]
[1755238761937,36.74,197.34,197.31,0.68]
[1755238763047,36.74,197.34,197.32,0.68]
[1755238763946,5.06610298,197.4,197.33,0.68]
[1755238764232,5.06610298,197.4,197.31,0.68]
[1755238764233,13.148815,197.36,197.31,0.68]
[1755238764412,52.50621557,197.39,197.27,0.03]
[1755238764413,13.148815,197.32,197.28,0.68]
[1755238764915,13.148815,197.32,197.29,0.68]
[1755238765109,13.148815,197.32,197.3,0.68]
[1755238765341,13.148815,197.33,197.31,0.68]
[1755238765522,49.888815,197.34,197.32,0.68]
[1755238765835,36.74,197.34,197.33,0.68]
[1755238766238,36.74,197.36,197.33,0.68]
[1755238766735,36.74,197.36,197.31,39.148815]
[1755238766736,36.74,197.36,197.34,0.68]
[1755238766922,36.74,197.38,197.34,0.68]
[1755238767320,36.74,197.38,197.35,5.06713959]
[1755238767540,36.74,197.38,197.36,0.68]
[1755238768239,0.06,197.39,197.37,0.68]
[1755238768740,0.06,197.39,197.35,5.06713959]
[1755238768741,0.06,197.39,197.38,0.68]
[1755238769121,0.06,197.39,197.38,39.828815]
[1755238769323,0.06,197.39,197.38,44.89518443]
[1755238770940,13.148815,197.48,197.38,72.66732359]
[1755238771141,49.888815,197.48,197.42,13.148815]
[1755238771347,13.148815,197.47,197.41,5.75559951]
[1755238771548,13.148815,197.46,197.4,5.06583118]
[1755238771750,13.148815,197.44,197.4,5.06583118]
[1755238772052,0.67,197.44,197.39,5.06607029]
[1755238772344,49.888815,197.44,197.39,5.06607029]
[1755238772519,49.888815,197.44,197.4,0.69]
[1755238773224,49.888815,197.44,197.39,5.06607029]
[1755238773423,49.888815,197.44,197.39,5.75607029]
[1755238773637,36.74,197.44,197.39,5.75607029]
[1755238773827,49.888815,197.44,197.39,5.75607029]
[1755238774139,36.74,197.44,197.4,0.69]
[1755238774443,36.74,197.44,197.41,0.69]
[1755238774646,36.74,197.44,197.42,0.69]
[1755238774860,36.74,197.44,197.39,5.75607029]
[1755238775055,36.74,197.44,197.4,0.69]
[1755238775355,36.74,197.44,197.41,0.69]
[1755238775555,131.9,197.48,197.42,13.838815]
[1755238775725,36.72,197.47,197.42,13.838815]
[1755238775928,36.72,197.47,197.43,0.69]
[1755238776741,50.538815,197.47,197.42,26.0]
[1755238777363,50.538815,197.47,197.42,26.69]
[1755238778248,50.538815,197.47,197.36,13.838815]
[1755238778249,13.148815,197.43,197.36,13.838815]
[1755238778461,13.148815,197.4,197.36,0.69]
[1755238779428,13.148815,197.4,197.36,5.75680302]
[1755238779855,49.868815,197.41,197.36,5.75680302]
[1755238780558,49.868815,197.41,197.36,5.06680302]
[1755238780752,13.148815,197.39,197.36,26.0]
[1755238780954,13.148815,197.44,197.37,39.838815]
[1755238781141,36.72,197.43,197.37,39.838815]
[1755238782155,36.72,197.43,197.38,18.90518443]
[1755238782339,36.72,197.43,197.39,13.838815]
[1755238782540,13.148815,197.48,197.41,13.148815]
[1755238782861,36.72,197.47,197.41,13.838815]
[1755238783045,36.72,197.47,197.42,13.148815]
[1755238783245,36.72,197.47,197.44,13.148815]
[1755238783455,36.72,197.47,197.45,0.69]
[1755238784235,36.72,197.47,197.45,5.0645733]
[1755238785841,36.72,197.47,197.45,18.2133883]
[1755238786047,36.72,197.47,197.45,18.9033883]
[1755238786566,0.06,197.49,197.46,13.148815]
[1755238786972,0.73,197.49,197.45,5.0645733]
[1755238787260,0.67,197.48,197.45,5.0645733]
[1755238787642,0.06,197.49,197.45,5.0645733]
[1755238787859,13.818815,197.48,197.43,5.06508635]
[1755238788361,13.818815,197.48,197.43,5.75508635]
[1755238788764,13.818815,197.48,197.41,41.214911]
[1755238788765,13.148815,197.46,197.41,46.28034081]
[1755238788971,0.67,197.45,197.41,31.06542981]
[1755238789138,0.67,197.45,197.41,26.0]
[1755238789337,0.06,197.49,197.39,5.75608888]
[1755238789338,36.7,197.46,197.39,5.75608888]
[1755238789636,36.7,197.46,197.39,0.69]
[1755238789637,0.67,197.44,197.39,0.69]
[1755238789851,13.818815,197.43,197.38,31.06635671]
[1755238790253,13.148815,197.43,197.38,31.75635671]
[1755238790445,13.148815,197.43,197.39,0.69]
[1755238790758,13.148815,197.44,197.4,0.69]
[1755238791236,13.148815,197.44,197.4,5.75582837]
[1755238791438,13.148815,197.44,197.4,5.06582837]
[1755238791840,36.7,197.46,197.4,5.06582837]
[1755238791841,49.848815,197.46,197.41,0.69]
[1755238792051,36.7,197.46,197.42,0.69]
[1755238792538,36.7,197.46,197.41,26.0]
[1755238792738,36.7,197.46,197.41,26.69]
[1755238793348,13.818815,197.45,197.41,26.0]
[1755238793543,13.818815,197.45,197.4,26.0]
[1755238793544,0.67,197.44,197.4,26.0]
[1755238793963,36.7,197.46,197.4,26.0]
[1755238793964,13.818815,197.43,197.4,26.0]
[1755238794169,13.148815,197.43,197.4,26.0]
[1755238795153,13.148815,197.44,197.4,31.06583611]
[1755238795360,13.818815,197.45,197.4,31.75583611]
[1755238795681,13.818815,197.44,197.4,31.06583611]
[1755238796161,41.76432825,197.46,197.4,26.0]
[1755238796370,0.67,197.43,197.4,26.0]
[1755238796667,13.148815,197.44,197.4,31.06580683]
[1755238796874,13.818815,197.44,197.4,26.0]
[1755238797049,13.148815,197.43,197.4,26.0]
[1755238798253,13.148815,197.43,197.39,5.0660026]
[1755238798455,13.148815,197.43,197.39,5.7560026]
[1755238799061,13.148815,197.43,197.39,0.69]
[1755238799766,13.148815,197.43,197.4,0.69]
[1755238800249,13.148815,197.43,197.39,5.06610637]
[1755238800450,13.148815,197.43,197.39,5.75610637]
[1755238800762,13.148815,197.43,197.4,0.69]
[1755238800966,13.848815,197.43,197.38,5.06636943]
[1755238801188,13.148815,197.43,197.39,0.72]
[1755238801358,13.148815,197.44,197.39,0.72]
[1755238801680,42.46435135,197.46,197.38,5.06636943]
[1755238801681,13.148815,197.43,197.38,5.06636943]
[1755238801985,13.848815,197.43,197.38,5.78636943]
[1755238802485,13.148815,197.43,197.37,26.0]
[1755238802788,13.148815,197.38,197.36,0.03]
[1755238802987,37.38,197.42,197.36,0.03]
[1755238803149,37.38,197.42,197.37,0.72]
[1755238803855,36.68,197.42,197.38,0.72]
[1755238804072,36.68,197.42,197.39,0.72]
[1755238804269,0.7,197.44,197.39,13.148815]
[1755238804451,36.68,197.45,197.4,0.72]
[1755238804651,36.68,197.45,197.4,13.868815]
[1755238804855,36.68,197.45,197.41,13.868815]
[1755238805052,13.848815,197.48,197.42,0.72]
[1755238805277,36.68,197.48,197.42,13.868815]
[1755238805777,36.68,197.48,197.43,13.148815]
[1755238805986,36.68,197.48,197.44,5.78482982]
[1755238806165,0.06,197.45,197.44,5.78482982]
[1755238807059,0.06,197.45,197.44,5.06482982]
[1755238807680,0.06,197.45,197.44,18.93364482]
[1755238808362,0.01399451,197.45,197.44,18.93364482]
[1755238809902,0.06,197.49,197.44,18.93364482]
[1755238809903,0.06,197.49,197.47,26.0]
[1755238810077,0.06,197.49,197.48,13.148815]
[1755238810260,0.06,197.49,197.48,13.868815]
[1755238810955,0.06,197.49,197.48,15.896956]
[1755238811159,0.06,197.5,197.48,15.896956]
[1755238811358,0.06,197.5,197.49,39.148815]
[1755238811591,0.06,197.5,197.49,44.93236252]
[1755238811796,0.06,197.5,197.49,31.78354752]
[1755238812090,0.06,197.5,197.49,81.59236252]
[1755238813706,13.148815,197.59,197.5,15.10621557]
[1755238813707,0.7,197.59,197.5,15.10621557]
[1755238813879,13.148815,197.63,197.53,26.0]
[1755238814086,13.148815,197.63,197.5,15.61254468]
[1755238814087,0.7,197.6,197.58,26.0]
[1755238814397,13.848815,197.62,197.58,26.0]
[1755238814601,0.7,197.61,197.58,26.0]
[1755238814775,0.7,197.6,197.58,26.0]
[1755238815473,0.7,197.59,197.57,26.0]
[1755238815683,0.7,197.58,197.57,26.0]
[1755238815886,0.7,197.61,197.57,31.06149719]
[1755238816094,0.7,197.6,197.57,31.06149719]
[1755238816689,13.848815,197.64,197.58,13.868815]
[1755238817167,13.848815,197.64,197.57,44.21031219]
[1755238817498,13.148815,197.62,197.57,26.0]
[1755238817666,13.148815,197.6,197.57,26.0]
[1755238817868,0.7,197.6,197.57,26.0]
[1755238818067,0.7,197.6,197.57,31.06141753]
[1755238818380,0.7,197.6,197.57,26.0]
[1755238819493,13.148815,197.61,197.57,26.0]
[1755238819696,13.848815,197.61,197.57,31.06147546]
[1755238820199,13.148815,197.63,197.57,31.06147546]
[1755238820501,0.7,197.65,197.59,13.148815]
[1755238820670,13.148815,197.64,197.58,0.72]
[1755238820870,0.7,197.63,197.57,44.21029046]
[1755238821902,13.148815,197.64,197.57,31.78147546]
[1755238822065,13.148815,197.64,197.57,44.93029046]
[1755238822482,13.148815,197.64,197.57,31.78147546]
[1755238822890,4.23921859,197.78,197.61,26.0]
[1755238823076,13.148815,197.67,197.63,26.0]
[1755238823276,0.7,197.69,197.63,26.0]
[1755238823495,13.148815,197.67,197.63,26.0]